fUST/lending_fUST_20240103
["ID","MTS","AMOUNT","RATE_DAILY","PERIOD"]
[310036140,1704294639332,-12813.30831167,0.00042,2]
[310036142,1704294639342,-6469.77776175,0.00042,2]
[310036144,1704294639351,-1000.0,0.00042297,14]
[310036146,1704294639360,-350.0,0.00042349,30]
[310036148,1704294639370,-1999.0010419,0.00042546,120]
[310036149,1704294639379,-1061.81161389,0.00042798,4]
[310036150,1704294639388,-1988.53772419,0.00042801,4]
[310036151,1704294639397,-777.0,0.00042803,2]
[310036152,1704294639407,-1000.0,0.00043,43]
[310036153,1704294639416,-4808.08580524,0.00043,7]
[310036154,1704294639425,-4000.0,0.00043,4]
[310036155,1704294639434,-971.47434902,0.00043018,4]
[310036156,1704294639444,-543.436456,0.00043215,2]
[310036157,1704294639522,-150.0,0.000438,7]
[310036158,1704294639533,-7219.96520272,0.000438,12]
[310036159,1704294639542,-250.0,0.00043835,10]
[310036160,1704294639551,-550.0,0.00043835,7]
[310036161,1704294639561,-24773.22016402,0.00043835,120]
[310036162,1704294639570,-3585.89591333,0.00043896,14]
[310036163,1704294639580,-219.34179541,0.00043896,2]
[310036164,1704294639590,-180.53157735,0.00043896,4]
[310036165,1704294639599,-155.43920081,0.00043896,4]
[310036166,1704294639609,-262.84829523,0.00043896,4]
[310036167,1704294639618,-1382.13402737,0.00043896,4]
[310036168,1704294639628,-154.84515485,0.00043896,4]
[310036169,1704294639636,-2607.29727446,0.00043896,4]
[310036170,1704294639646,-272.78134711,0.00043896,4]
[310036171,1704294639655,-155.03908595,0.00043896,4]
[310036172,1704294639664,-690.19611945,0.00043896,4]
[310036173,1704294639674,-2097.15281013,0.00043896,4]
[310036174,1704294639683,-276.30521429,0.00043896,4]
[310036175,1704294639692,-236.52214315,0.00043896,4]
[310036176,1704294639701,-623.47877653,0.00043896,4]
[310036177,1704294639711,-552.93023041,0.00043898,4]
[310036178,1704294639720,-166.23904276,0.00043898,4]
[310036179,1704294639729,-154.84515485,0.00043898,4]
[310036180,1704294639742,-328.14293882,0.00043898,4]
[310036181,1704294639751,-1600.4807732,0.00043898,4]
[310036182,1704294639760,-19622.64196242,0.00043898,4]
[310036183,1704294639771,-2774.1689878,0.00043898,4]
[310036184,1704294639781,-163.17457838,0.00043898,4]
[310036185,1704294639790,-573.78539015,0.00043898,4]
[310036186,1704294639799,-12412.3958869,0.00043898,4]
[310036187,1704294639808,-237.77647699,0.00043898,4]
[310036188,1704294639817,-174.46125721,0.00043898,4]
[310036189,1704294639827,-206.27870555,0.00043898,4]
[310036190,1704294639837,-744.28158124,0.00043899,4]
[310036191,1704294639846,-4404.63109243,0.000439,4]
[310036192,1704294639856,-2831.07884614,0.000439,60]
[310036193,1704294639865,-1000.0,0.00043951,15]
[310036194,1704294639874,-1000.0,0.00043961,15]
[310036195,1704294639884,-275.36172513,0.00044,4]
[310036196,1704294639893,-1000.0,0.00044,44]
[310036197,1704294639902,-22566.3706461,0.00044,7]
[310036198,1704294639912,-61315.88519292,0.00044,2]
[310036199,1704294639921,-150.77383924,0.00044032,2]
[310036200,1704294639930,-550.0,0.00044109,7]
[310036201,1704294639939,-550.0,0.00044383,7]
[310036202,1704294639949,-250.0,0.00044503,90]
[310036203,1704294639958,-16535.62062803,0.000446,7]
[310036236,1704294641229,-2704.22921511,0.00039795,5]
[310036237,1704294641242,-245.74596038,0.00039795,4]
[310036238,1704294641252,-260.46874,0.00039795,4]
[310036239,1704294641261,-500.0,0.00039796,2]
[310036240,1704294641271,-325.71017766,0.00039796,2]
[310036241,1704294641281,-500.0,0.00039896,4]
[310036242,1704294641291,-643.82791428,0.00039896,4]
[310036243,1704294641301,-500.0,0.00039896,4]
[310036244,1704294641310,-508.08997458,0.00039896,4]
[310036245,1704294641320,-201.1189304,0.00039896,4]
[310036246,1704294641331,-619.28263325,0.00039896,7]
[310036247,1704294641341,-16298.2703418,0.000446,7]
[310036248,1704294641354,-4013.70463148,0.000446,7]
[310036249,1704294641366,-2396.75811269,0.000446,7]
[310036250,1704294641378,-2342.58720012,0.000446,7]
[310036251,1704294641389,-4848.27606325,0.000446,7]
[310036252,1704294641399,-3108.10795498,0.000446,3]
[310036253,1704294641408,-641.66291096,0.00044657,7]
[310036254,1704294641417,-167.77,0.00044753,2]
[310036255,1704294641427,-323.65169543,0.00044753,2]
[310036256,1704294641436,-301.54767848,0.00044772,4]
[310036257,1704294641445,-16735.01724994,0.000448,30]
[310036258,1704294641455,-191.09816405,0.00044859,7]
[310036259,1704294641464,-420.67135824,0.00044859,7]
[310036260,1704294641473,-482.87093571,0.00044859,7]
[310036261,1704294641483,-500.0,0.00044859,7]
[310036262,1704294641496,-39370.19125175,0.0004486,10]
[310036263,1704294641506,-1500.0,0.00044877,7]
[310036264,1704294641515,-1247.01325851,0.000449,120]
[310036265,1704294641525,-5810.0678087,0.000449,6]
[310036266,1704294641536,-5162.68968505,0.000449,6]
[310036316,1704294643059,-154.78330338,0.000349,4]
[310036317,1704294643069,-225.19563956,0.000349,5]
[310036326,1704294645960,-1588.6846698,0.000349,5]
[310036327,1704294645971,-4033.54542916,0.000349,4]
[310036328,1704294645982,-281.91464801,0.000349,3]
[310036329,1704294645996,-155.16578643,0.000349,2]
[310036330,1704294646007,-2789.35057901,0.000349,4]
[310036331,1704294646017,-984.92004342,0.000349,4]
[310036333,1704294646027,-1200.0,0.000349,4]
[310036334,1704294646037,-154.78330338,0.000349,4]
[310036335,1704294646048,-205.35493688,0.000349,20]
[310036336,1704294646057,-7987.1129013,0.00035815,4]
[310036337,1704294646067,-1309.38626052,0.00035815,2]
[310036338,1704294646077,-756.31716698,0.00035815,30]
[310036339,1704294646088,-5000.0,0.00038601,10]
[310036340,1704294646097,-28758.0885844,0.00038841,2]
[310036341,1704294646107,-912.79105878,0.00039755,4]
[310036342,1704294646117,-526.87034716,0.00039795,4]
[310036343,1704294646127,-154.78330338,0.00044899,10]
[310036344,1704294646137,-298.3155102,0.00044899,4]
[310036345,1704294646146,-783.278067,0.00044899,4]
[310036346,1704294646156,-401.62856204,0.00044899,14]
[310036347,1704294646166,-2092.4943118,0.00044899,4]
[310036348,1704294646176,-155.18994402,0.00044899,30]
[310036349,1704294646186,-2602.40622626,0.000449,6]
[310036350,1704294646195,-25586.64582357,0.000449,5]
[310036351,1704294646205,-150.0,0.00044925,2]
[310036352,1704294646214,-200.751,0.00044925,2]
[310036353,1704294646224,-338.19474795,0.00044998,2]
[310036354,1704294646233,-4779.79120143,0.00044998,30]
[310036355,1704294646245,-155.61952728,0.00044998,4]
[310036356,1704294646255,-15009.35518806,0.00044999,3]
[310036357,1704294646265,-1913.22,0.00044999,7]
[310036358,1704294646275,-1913.22,0.00044999,7]
[310036359,1704294646285,-1913.22,0.00044999,7]
[310036360,1704294646294,-1913.22,0.00044999,7]
[310036361,1704294646305,-1913.22,0.00044999,7]
[310036362,1704294646314,-2191.29657,0.00044999,4]
[310036363,1704294646323,-155578.10962178,0.00045,7]
[310036364,1704294646336,-2998.87876853,0.00045,7]
[310036365,1704294646345,-537.71425279,0.00045,2]
[310036366,1704294646356,-1279.68822691,0.00045,120]
[310036367,1704294646469,-16088.46347,0.00045,120]
[310036368,1704294646513,292.44148742,0.00022,4]
[310036454,1704294651933,-263.3586605,0.00029846,2]
[310036466,1704294652035,-5.37466654,0.00029846,2]
[310036513,1704294653366,257.98399396,0.00026175,10]
[310036514,1704294653394,263.3586605,0.00026175,10]
[310036515,1704294653423,263.3586605,0.00026175,10]
[310036516,1704294653452,263.3586605,0.00026175,10]
[310036517,1704294653474,214.07085942,0.00026175,10]
[310036518,1704294689845,1000.0,0.00026175,2]
[310036519,1704294691211,154.78330338,0.00026175,2]
[310036520,1704294694593,1521.43996092,0.00026175,2]
[310036521,1704294694928,3207.16995725,0.00026175,2]
[310036522,1704294696681,283000.1565352,0.00026175,7]
[310036523,1704294697153,154.78330338,0.00026175,2]
[310036524,1704294697728,300.0,0.00026175,2]
[310036525,1704294697809,545.99331309,0.00026175,2]
[310036526,1704294698810,685.60348625,0.00026175,2]
[310036527,1704294698920,18839.45820726,0.00026175,2]
[310036528,1704294698980,808.765353,0.00026175,2]
[310036529,1704294699277,4412.38587704,0.00026175,2]
[310036530,1704294699893,154.78330338,0.00026175,2]
[310036531,1704294700125,731.10315085,0.00026175,2]
[310036532,1704294700207,154.78330338,0.00023558,2]
[310036533,1704294702808,10265.97286371,0.00026175,2]
[310036534,1704294703839,1000.0,0.00026175,2]
[310036535,1704294703959,154.78330338,0.00025913,2]
[310036536,1704294706820,3385.202222,0.00026175,2]
[310036537,1704294706882,1819.06283426,0.00026175,2]
[310036538,1704294710784,1602.26381609,0.00026175,2]
[310036539,1704294710933,3207.16995725,0.00026175,2]
[310036540,1704294711738,300.0,0.00026175,2]
[310036541,1704294711834,545.99331309,0.00026175,2]
[310036542,1704294712294,154.78330338,0.00023558,2]
[310036543,1704294713210,158.08796012,0.00026175,2]
[310036544,1704294714135,838.50388676,0.00026175,2]
[310036545,1704294714724,478.54627906,0.00026175,2]
[310036546,1704294714919,18839.45820726,0.00026175,2]
[310036547,1704294715162,154.78330338,0.00026175,2]
[310036548,1704294718387,154.78330338,0.00026175,2]
[310036549,1704294719053,808.765353,0.00026175,2]
[310036550,1704294719851,1000.0,0.00026175,2]
[310036551,1704294720626,4525.40569662,0.00026175,2]
[310036552,1704294720817,3385.59817408,0.00026175,2]
[310036553,1704294721324,-678.15792948,0.00031404,4]
[310036554,1704294721377,-445.09658133,0.00031404,4]
[310036555,1704294721433,-622.97726142,0.00031404,4]
[310036556,1704294721498,-221.31252285,0.00031404,4]
[310036557,1704294721527,-166.2793413,0.00031405,2]
[310036558,1704294721557,-235.38539727,0.00031405,4]
[310036559,1704294721969,154.90703104,0.00025913,2]
[310036560,1704294722686,283000.1565352,0.00026175,7]
[310036561,1704294722870,1818.17749445,0.00026175,2]
[310036562,1704294723278,4412.38587704,0.00026175,2]
[310036563,1704294724685,154.78330338,0.00026174,2]
[310036564,1704294729812,277.54571316,0.00026175,2]
[310036565,1704294730214,154.78330338,0.00023558,2]
[310036568,1704294732930,1575.39538203,0.00026175,2]
[310036569,1704294732973,522.09141174,0.00026175,2]
[310036570,1704294735095,156.14753008,0.00026175,2]
[310036571,1704294736925,711.66695307,0.00026175,2]
[310036572,1704294739274,4412.38587704,0.00026175,2]
[310036573,1704294739627,1464.41511106,0.00028925,2]
[310036574,1704294742387,168.65838406,0.00026175,2]
[310036575,1704294743860,1000.0,0.00026175,2]
[310036576,1704294744684,283000.1565352,0.00026175,7]
[310036577,1704294746210,154.78330338,0.00023558,2]
[310036578,1704294747152,-346.24545473,0.00030385,2]
[310036579,1704294747265,-7.06623377,0.00030385,2]
[310036580,1704294755273,1634.94619678,0.00026175,2]
[310036581,1704294757626,1464.41511106,0.00028925,2]
[310036582,1704294763846,-5000.0,0.00030372,2]
[310036583,1704294763882,626.98071101,0.00026175,2]
[310036584,1704294764140,-5000.0,0.00030372,2]
[310036585,1704294764220,-5000.0,0.00030372,2]
[310036586,1704294764264,282.63236264,0.00023558,2]
[310036587,1704294764492,-5000.0,0.00030372,2]
[310036588,1704294764557,-4900.0,0.00030372,2]
[310036589,1704294764696,100.0,0.00026175,7]
[310036590,1704294764733,5000.0,0.00026175,7]
[310036591,1704294764755,277900.1565352,0.00026175,7]
[310036592,1704294781658,1464.41511106,0.00028925,2]
[310036593,1704294784677,283000.1565352,0.00026175,7]
[310036594,1704294791302,-4900.0,0.00030291,2]
[310036595,1704294791486,-100.0,0.00030291,2]
[310036596,1704294794079,2629.9084742,0.00030291,2]
[310036597,1704294800683,158258.88677682,0.00026175,7]
[310036598,1704294800707,124741.26975838,0.00026175,7]
[310036599,1704294809812,-206.19523456,0.0003029,4]
[310036600,1704294809916,-4.20806601,0.0003029,4]
[310036601,1704294818418,-359.64303841,0.0003029,4]
[310036602,1704294818571,-7.33965384,0.0003029,4]
[310036603,1704294820704,352.30338457,0.00026175,7]
[310036604,1704294820733,359.64303841,0.00026175,7]
[310036605,1704294820756,11094.89081117,0.00026175,7]
[310036606,1704294820924,-670.24469312,0.00028925,2]
[310036607,1704294821131,-670.24469312,0.00028925,2]
[310036608,1704294821166,-123.92572482,0.00028925,2]
[310036609,1704294821197,-739.625127,0.00030273,2]
[310036610,1704294821231,-57.28177264,0.00030273,2]
[310036611,1704294821269,-682.34335436,0.00030273,2]
[310036612,1704294821298,-238.4892701,0.0003029,2]
[310036613,1704294821425,-739.625127,0.00030273,2]
[310036614,1704294821457,-181.20749746,0.0003029,2]
[310036615,1704294821683,739.625127,0.00030273,2]
[310036616,1704294821751,-64.22638868,0.0003029,2]
[310036617,1704294822217,739.625127,0.00030273,2]
[310036618,1704294829127,-333.35272672,0.0003029,4]
[310036619,1704294829380,-6.80311687,0.0003029,4]
[310036620,1704294841749,-606.05653356,0.00030289,4]
[310036621,1704294841779,-139.58165571,0.0003029,4]
[310036622,1704294841831,-15.2171059,0.0003029,4]
[310036623,1704294843728,606.05653356,0.00030289,4]
[310036624,1704294850032,-191.32355416,0.00030191,5]
[310036625,1704294850064,-147.87631529,0.0003029,5]
[310036626,1704294850205,-6.92244632,0.0003029,5]
[310036627,1704294851520,-1283.19853531,0.00028924,2]
[310036628,1704294851799,-181.21657575,0.00028924,2]
[310036629,1704294851830,-1101.98195956,0.0003029,2]
[310036630,1704294852228,-207.40430096,0.0003029,2]
[310036631,1704294853020,361.06205169,0.0003029,4]
[310036632,1704294867371,-271.65170788,0.00027953,2]
[310036633,1704294867643,-5.54391241,0.00027953,2]
[310036634,1704294879299,-1300.5013608,0.00027953,2]
[310036635,1704294879460,-163.91375026,0.00027953,2]
[310036636,1704294879495,-1136.58761054,0.00030252,2]
[310036637,1704294879573,-190.45459436,0.00030252,2]
[310036638,1704294885494,-5000.0,0.00030251,4]
[310036639,1704294885667,-1595.47632573,0.00030251,4]
[310036640,1704294885701,-787.39585825,0.00030251,4]
[310036641,1704294886014,862.52494452,0.00030251,4]
[310036642,1704294890925,-5000.0,0.0003025,4]
[310036643,1704294891052,-246.86679064,0.0003025,4]
[310036644,1704294914755,-154.79876161,0.0003029,4]
[310036645,1704294914785,-774.43618447,0.0003029,4]
[310036646,1704294914826,-18.96397849,0.0003029,4]
[310036647,1704294915290,908.10819062,0.0003029,4]
[310036648,1704294916314,-286.3543097,0.00027957,2]
[310036649,1704294916434,-286.3543097,0.00027957,2]
[310036650,1704294916535,-286.3543097,0.00027957,2]
[310036651,1704294916648,-286.3543097,0.00027957,2]
[310036652,1704294916766,-286.3543097,0.00027957,2]
[310036653,1704294916812,-32.64356256,0.00027957,2]
[310036654,1704294916841,-253.71074714,0.00030124,2]
[310036655,1704294916900,-38.48752806,0.00030124,2]
[310036656,1704294916982,2.16277697,0.00030289,4]
[310036657,1704294917011,706.52447244,0.00030289,4]
[310036658,1704294919029,638.44894353,0.00030289,4]
[310036659,1704294920207,154.79876161,0.00030123,4]
[310036660,1704294921471,-5000.0,0.00030121,2]
[310036661,1704294922020,-5000.0,0.00030121,2]
[310036662,1704294922061,-5000.0,0.00030121,2]
[310036663,1704294922112,-3639.540237,0.00030121,2]
[310036664,1704294922539,-1571.2136932,0.00030123,4]
[310036665,1704294922744,-32.06558557,0.00030123,4]
[310036666,1704294924450,-432.26611578,0.0003029,4]
[310036667,1704294924602,-8.82175746,0.0003029,4]
[310036668,1704294924916,423.44435832,0.0003029,4]
[310036669,1704294924946,432.26611578,0.0003029,4]
[310036670,1704294924978,299.05899556,0.0003029,4]
[310036671,1704294925848,133.20712022,0.00030122,4]
[310036672,1704294925876,432.26611578,0.00030122,4]
[310036673,1704294929475,-60.79794364,0.00030122,4]
[310036674,1704294929506,-154.79876161,0.00030122,5]
[310036675,1704294929536,-969.58322322,0.0003029,4]
[310036676,1704294929646,-239.78405073,0.0003029,4]
[310036677,1704294930171,394.96400341,0.0003029,4]
[310036678,1704294933296,-219.00004117,0.00030121,4]
[310036679,1704294933398,-4.4693886,0.00030121,4]
[310036680,1704294933660,1464.41511106,0.00023342,2]
[310036681,1704294935154,214.53065257,0.00030121,4]
[310036682,1704294935193,219.00004117,0.00030121,4]
[310036683,1704294935236,219.00004117,0.00030121,4]
[310036684,1704294935280,99.44023873,0.00030121,4]
[310036685,1704294936873,154.79876161,0.00030121,4]
[310036686,1704294942699,-154.79876161,0.0002801,4]
[310036687,1704294942729,-300.55274885,0.00030121,4]
[310036688,1704294942758,-339.13422513,0.00030121,4]
[310036689,1704294942975,-16.2139946,0.00030121,4]
[310036690,1704294944101,-1150.42869216,0.0003029,4]
[310036691,1704294944193,-23.47813657,0.0003029,4]
[310036692,1704294945808,743.34278036,0.00030121,4]
[310036693,1704294945987,154.79876161,0.00030121,4]
[310036694,1704294948738,-206.19523456,0.00030121,4]
[310036695,1704294948925,-4.20806601,0.00030121,4]
[310036696,1704294949521,201.98716855,0.00030121,4]
[310036697,1704294949550,107.20522601,0.00030121,4]
[310036698,1704294950228,98.99000855,0.00030121,4]
[310036699,1704294950652,-797.52502923,0.00030121,4]
[310036700,1704294950880,-16.276021,0.00030121,4]
[310036701,1704294951646,1464.41511106,0.00023342,2]
[310036702,1704294956147,-3465.13596181,0.0003012,4]
[310036703,1704294956295,-70.71706044,0.0003012,4]
[310036704,1704294956844,-377.86428215,0.0003012,2]
[310036705,1704294956878,200.0,0.00030108,15]
[310036706,1704294957175,-7.71151596,0.0003012,2]
[310036707,1704294958490,174.597779,0.0002983,2]
[310036708,1704294963159,-2086.70720611,0.00030119,4]
[310036709,1704294963430,-42.58586135,0.00030119,4]
[310036710,1704294963702,-5000.0,0.000311,4]
[310036711,1704294963862,-5000.0,0.000311,4]
[310036712,1704294963981,-5000.0,0.000311,4]
[310036713,1704294964171,154.79876161,0.0002801,4]
[310036714,1704294964208,-5000.0,0.000311,4]
[310036715,1704294964471,-183.20108502,0.00030121,4]
[310036716,1704294964502,-4816.79891498,0.000311,4]
[310036717,1704294964666,-618.30797825,0.00030121,20]
[310036718,1704294964697,-1560.44879458,0.000311,4]
[310036719,1704294965314,698.95,0.00030121,4]
[310036720,1704294966022,-166.2793413,0.00030122,2]
[310036721,1704294966134,1663.43697951,0.0003029,4]
[310036722,1704294967226,-310.02090877,0.00030191,2]
[310036723,1704294967257,-200.0,0.00030291,2]
[310036724,1704294967287,-2255.11010989,0.000311,2]
[310036725,1704294967317,-2234.86898134,0.000311,2]
[310036726,1704294967377,-5000.0,0.000311,2]
[310036727,1704294967413,1170.47160414,0.0003029,4]
[310036728,1704294967451,-5000.0,0.000311,2]
[310036729,1704294967552,137.54114929,0.00030121,4]
[310036730,1704294967584,35.30430274,0.00030121,4]
[310036731,1704294967618,-5000.0,0.000311,2]
[310036732,1704294967687,-5000.0,0.000311,2]
[310036733,1704294967872,-5000.0,0.000311,2]
[310036734,1704294967918,-754.18276478,0.000311,2]
[310036735,1704294967949,-4245.81723522,0.000311,2]
[310036736,1704294968005,-3598.38276478,0.000311,2]
[310036737,1704294968396,1401.61723522,0.00031091,3]
[310036738,1704294968426,3654.47276478,0.00031091,3]
[310036739,1704294969534,1345.52723522,0.000311,4]
[310036740,1704294969564,5000.0,0.000311,4]
[310036741,1704294969594,5000.0,0.000311,4]
[310036742,1704294970061,-5000.0,0.000311,4]
[310036743,1704294970165,-5000.0,0.000311,4]
[310036744,1704294970309,-5000.0,0.000311,4]
[310036745,1704294970436,-1604.68611328,0.000311,4]
[310036746,1704294971087,383.32525908,0.00030121,4]
[310036747,1704294971751,3011.98862764,0.000311,4]
[310036748,1704294971783,523.86439461,0.000311,4]
[310036749,1704294975335,-5000.0,0.000311,4]
[310036750,1704294975612,-5000.0,0.000311,4]
[310036751,1704294975732,-551.30888838,0.000311,4]
[310036752,1704294976690,236.86655345,0.00031099,4]
[310036753,1704294976732,2129.29306746,0.00031099,4]
[310036754,1704294977312,2082.53149071,0.00031099,4]
[310036755,1704294977343,5000.0,0.00031099,4]
[310036756,1704294977374,232.12922238,0.00031099,4]
[310036757,1704294977405,232.12922238,0.00031099,4]
[310036758,1704294977643,-5000.0,0.00031099,4]
[310036759,1704294977751,-5000.0,0.00031099,4]
[310036760,1704294977914,-5000.0,0.00031099,4]
[310036761,1704294978024,-3830.45777409,0.00031099,4]
[310036762,1704294978445,209.42054682,0.00031099,4]
[310036763,1704294979067,154.79876161,0.00031099,4]
[310036764,1704294979103,805.32291748,0.00031099,4]
[310036765,1704294979138,1972.14604171,0.00031099,4]
[310036766,1704294979793,-236.32412585,0.00028925,2]
[310036767,1704294980076,-236.32412585,0.00028925,2]
[310036768,1704294980260,908.10819062,0.00031099,4]
[310036769,1704294980296,705.16202791,0.00031099,4]
[310036770,1704294980356,-5000.0,0.00031091,3]
[310036771,1704294980412,-236.32412585,0.00028925,2]
[310036772,1704294980526,205.23213588,0.00031099,4]
[310036773,1704294980557,205.23213588,0.00031099,4]
[310036774,1704294980603,-4641.63,0.00031091,3]
[310036775,1704294980873,-654.25679404,0.00028925,2]
[310036776,1704294980904,-241.14706719,0.00031099,2]
[310036777,1704294980934,-419.27801457,0.00031099,2]
[310036778,1704294980979,-681.0870364,0.00031099,2]
[310036779,1704294981015,-633.5948394,0.00031099,4]
[310036780,1704294981087,-5000.0,0.00031099,4]
[310036781,1704294981210,-5000.0,0.00031099,4]
[310036782,1704294981583,-5000.0,0.00031099,4]
[310036783,1704294981792,-5000.0,0.00031099,4]
[310036784,1704294981920,-5000.0,0.00031099,4]
[310036785,1704294982059,-5000.0,0.00031099,4]
[310036786,1704294982193,-5000.0,0.00031099,4]
[310036787,1704294982344,-5000.0,0.00031099,4]
[310036788,1704294982474,-5000.0,0.00031099,4]
[310036789,1704294982595,-3359.48860053,0.00031099,4]
[310036790,1704294982627,-698.95,0.00031099,4]
[310036791,1704294982659,-172.84545203,0.00031099,4]
[310036792,1704294982690,-768.71594744,0.00031099,2]
[310036793,1704294983094,-5000.0,0.00031099,2]
[310036794,1704294983265,-4888.75801462,0.00031099,2]
[310036795,1704294983325,778.13768929,0.00031099,4]
[310036796,1704294983996,496.08107459,0.00031099,4]
[310036797,1704294985289,3725.78123612,0.00031098,4]
[310036798,1704294985321,42.31615977,0.00031098,4]
[310036799,1704294986097,239.48878468,0.00031098,4]
[310036800,1704294986131,1680.57696701,0.00031098,4]
[310036801,1704294988177,1646.96542767,0.00031098,4]
[310036802,1704294988207,470.78116522,0.00031098,4]
[310036803,1704294991494,-5000.0,0.00031091,3]
[310036804,1704294991619,-3034.69,0.00031091,3]
[310036805,1704294992167,-4914.9007658,0.00031099,4]
[310036806,1704294992295,-100.30409726,0.00031099,4]
[310036807,1704294992324,-825.00618114,0.00031099,4]
[310036808,1704294995906,-770.509591,0.00031099,4]
[310036809,1704294996106,-15.72468553,0.00031099,4]
[310036810,1704294996754,754.78490547,0.00031099,4]
[310036811,1704294996788,38.61525749,0.00031099,4]
[310036812,1704294997232,731.89433351,0.00031099,4]
[310036813,1704294997651,-5000.0,0.00031099,4]
[310036814,1704294997777,-5000.0,0.00031099,4]
[310036815,1704294997876,-5000.0,0.00031099,4]
[310036816,1704294997985,-2266.08460704,0.00031099,4]
[310036817,1704294998015,-225.42648543,0.00031099,4]
[310036818,1704294998046,-2508.48890753,0.000311,4]
[310036819,1704294998100,-496.08107459,0.00031099,4]
[310036820,1704294998130,-2157.36724158,0.000311,4]
[310036821,1704294998159,-2346.55168383,0.000311,4]
[310036822,1704294998210,-5000.0,0.000311,4]
[310036823,1704294998324,-543.65174227,0.00031099,2]
[310036824,1704294998476,-2808.26480597,0.00031099,4]
[310036825,1704294998507,-2191.73519403,0.000311,4]
[310036826,1704294998544,-11.09493352,0.00031099,2]
[310036827,1704294998583,532.55680875,0.00031099,4]
[310036828,1704294998624,-5000.0,0.00031099,4]
[310036829,1704294998658,-1287.48377906,0.00031099,4]
[310036830,1704294998687,-3712.51622094,0.000311,4]
[310036831,1704294998721,-5000.0,0.000311,4]
[310036832,1704294998810,-5000.0,0.000311,4]
[310036833,1704294998944,-5000.0,0.000311,4]
[310036834,1704294999060,-5000.0,0.000311,4]
[310036835,1704294999219,-2189.13593755,0.000311,4]
[310036836,1704294999426,1154.76946966,0.00031099,4]
[310036837,1704294999562,172.84545203,0.00031099,4]
[310036838,1704295000735,898.26255411,0.000311,4]
[310036839,1704295001080,584.98658665,0.000311,4]
[310036840,1704295001112,2192.48237254,0.000311,4]
[310036841,1704295001491,-3266.89552617,0.00031099,2]
[310036842,1704295001660,169.68033041,0.000311,4]
[310036843,1704295001694,-66.67133727,0.00031099,2]
[310036844,1704295002087,206.80636024,0.000311,4]
[310036845,1704295002676,3200.2241889,0.00031091,3]
[310036846,1704295002710,3266.89552617,0.00031091,3]
[310036847,1704295002742,228.46028493,0.00031091,3]
[310036848,1704295003760,1099.67566197,0.00031099,3]
[310036849,1704295003815,-3692.73544797,0.000311,4]
[310036850,1704295003929,-75.36194792,0.000311,4]
[310036851,1704295003958,-3617.37350005,0.000311,4]
[310036852,1704295004092,-1397.83136301,0.000311,4]
[310036853,1704295004546,2294.90408496,0.000311,4]
[310036854,1704295004574,4988.75547476,0.000311,4]
[310036855,1704295004604,4988.75547476,0.000311,4]
[310036856,1704295004638,-1369.87473575,0.000311,4]
[310036857,1704295004910,-5000.0,0.000311,4]
[310036858,1704295005025,-2661.43678986,0.000311,4]
[310036859,1704295006153,2117.74659289,0.000311,4]
[310036860,1704295007098,-1060.43103128,0.0003019,2]
[310036861,1704295007235,-21.64144962,0.0003019,2]
[310036862,1704295007770,751.97097364,0.000311,4]
[310036863,1704295009291,154.79876161,0.000311,4]
[310036864,1704295011723,-4572.53902613,0.000311,4]
[310036865,1704295011916,-93.31712298,0.000311,4]
[310036866,1704295012291,1527.51024498,0.000311,4]
[310036867,1704295012438,223.46942977,0.000311,4]
[310036868,1704295013424,1127.44860282,0.000311,4]
[310036869,1704295013934,1600.79362558,0.000311,4]
[310036870,1704295013964,2426.43074438,0.000311,4]
[310036871,1704295014302,1173.90682873,0.000311,4]
[310036872,1704295014585,-5000.0,0.00031091,3]
[310036873,1704295014700,-579.65,0.00031091,3]
[310036874,1704295014986,323.05321135,0.000311,4]
[310036875,1704295015016,1496.96004008,0.000311,4]
[310036876,1704295015045,219.00004117,0.000311,4]
[310036877,1704295015074,2377.90212949,0.000311,4]